bitfinex-derivatives/quotes_SOLF0:USTF0_20220102
["timestamp","ask_amount","ask_price","bid_price","bid_amount"]
[1641149764691,14.40350891,175.49,175.42,27.66479]
[1641149764890,17.40350891,175.49,175.38,30.66479]
[1641149765090,3.0,175.48,175.36,35.6089]
[1641149765290,27.66479,175.44,175.36,32.6089]
[1641149765491,32.61079,175.44,175.39,1.28295013]
[1641149766890,32.61079,175.44,175.36,3.0]
[1641149767292,60.27558,175.44,175.36,3.0]
[1641149767491,60.27558,175.44,175.35,3.0]
[1641149767992,60.27558,175.44,175.34,40.77989611]
[1641149769291,4.946,175.44,175.34,8.69589611]
[1641149769491,3.0,175.48,175.35,1.2744738]
[1641149770095,27.66479,175.4,175.35,1.2744738]
[1641149770797,27.66479,175.4,175.35,4.2744738]
[1641149771098,27.66479,175.43,175.35,4.2744738]
[1641149772297,7.337,175.49,175.35,3.0]
[1641149772700,2.74686032,175.48,175.35,3.0]
[1641149772901,27.66479,175.45,175.35,3.0]
[1641149773401,27.66479,175.45,175.36,1.28290526]
[1641149774203,27.66479,175.45,175.35,1.28290526]
[1641149774403,2.74686032,175.44,175.35,1.28290526]
[1641149775004,12.81952727,175.44,175.33,10.40259258]
[1641149775208,27.66479,175.39,175.33,10.40259258]
[1641149776004,27.66479,175.39,175.34,1.28290526]
[1641149778107,2.75866101,175.38,175.31,10.30690526]
[1641149778510,2.75866101,175.38,175.31,7.30690526]
[1641149778705,9.61866101,175.38,175.27,3.0]
[1641149778906,3.0,175.37,175.26,35.26425476]
[1641149779109,3.0,175.36,175.32,1.27952262]
[1641149779308,27.66479,175.35,175.31,6.10404745]
[1641149779507,30.66479,175.35,175.31,6.10404745]
[1641149780008,30.66479,175.35,175.27,32.26425476]
[1641149780209,30.66479,175.35,175.24,3.0]
[1641149780609,30.66479,175.35,175.23,60.71249]
[1641149780807,30.66479,175.35,175.24,3.0]
[1641149781209,42.78297728,175.35,175.24,15.11818728]
[1641149781611,39.78297728,175.35,175.24,15.11818728]
[1641149782311,39.78297728,175.35,175.24,3.0]
[1641149782811,42.78297728,175.35,175.24,3.0]
[1641149783216,3.0,175.34,175.24,12.11818728]
[1641149783415,7.693,175.34,175.24,12.11818728]
[1641149785015,4.693,175.34,175.24,12.11818728]
[1641149785215,27.66479,175.35,175.24,12.11818728]
[1641149785917,30.66479,175.35,175.24,12.11818728]
[1641149786117,3.0,175.34,175.24,12.11818728]
[1641149786617,3.0,175.34,175.25,39.78297728]
[1641149787519,27.66479,175.35,175.25,39.78297728]
[1641149788623,30.66479,175.35,175.25,39.78297728]
[1641149789122,3.0,175.34,175.25,39.78297728]
[1641149790225,15.11818728,175.34,175.25,27.66479]
[1641149790727,12.11818728,175.33,175.25,27.66479]
[1641149790928,12.11818728,175.33,175.25,21.18409698]
[1641149791229,15.11818728,175.34,175.25,21.18409698]
[1641149791427,12.11818728,175.34,175.25,25.81409698]
[1641149791727,15.11818728,175.34,175.25,25.81409698]
[1641149791927,12.11818728,175.34,175.25,25.81409698]
[1641149792128,12.11818728,175.34,175.25,4.63]
[1641149792328,15.11818728,175.34,175.25,4.63]
[1641149792729,12.11818728,175.34,175.25,4.63]
[1641149792929,15.11818728,175.34,175.25,4.63]
[1641149793533,12.11818728,175.34,175.25,4.63]
[1641149793732,15.11818728,175.34,175.25,4.63]
[1641149793931,42.78297728,175.34,175.25,32.29479]
[1641149794531,39.78297728,175.34,175.25,32.29479]
[1641149794732,3.0,175.32,175.25,32.29479]
[1641149795732,12.11818728,175.33,175.25,32.29479]
[1641149796132,12.11818728,175.32,175.25,32.29479]
[1641149797733,12.11818728,175.31,175.25,32.29479]
[1641149798239,15.11818728,175.31,175.25,4.63]
[1641149798433,12.11818728,175.31,175.23,45.16588728]
[1641149799833,12.11818728,175.3,175.23,33.0477]
[1641149800040,39.78297728,175.3,175.23,33.0477]
[1641149800739,27.66479,175.3,175.23,33.0477]
[1641149800939,27.66479,175.3,175.22,27.66479]
[1641149801640,27.66479,175.3,175.25,3.0]
[1641149801841,27.66479,175.3,175.25,4.317]
[1641149802040,31.66445419,175.34,175.27,3.0]
[1641149802239,31.66445419,175.34,175.25,4.317]
[1641149802443,31.66445419,175.34,175.25,7.317]
[1641149803243,27.66479,175.34,175.25,7.317]
[1641149804443,27.66479,175.34,175.25,4.317]
[1641149805747,27.66479,175.34,175.24,3.0]
[1641149805948,27.66479,175.34,175.23,3.0]
[1641149806757,27.66479,175.34,175.3,3.99966419]
[1641149806758,39.78297728,175.34,175.3,3.99966419]
[1641149807653,27.66479,175.34,175.31,3.99966419]
[1641149808454,27.66479,175.34,175.32,3.99966419]
[1641149809155,12.11818728,175.36,175.32,3.99966419]
[1641149810158,27.66479,175.33,175.32,3.99966419]
[1641149813659,27.66479,175.33,175.3,3.99966419]
[1641149816563,12.11818728,175.34,175.3,3.99966419]
[1641149816966,27.66479,175.32,175.3,3.99966419]
[1641149820066,2.76691215,175.31,175.3,3.99966419]
[1641149820666,27.66479,175.32,175.28,1.28295448]
[1641149822269,2.76707154,175.31,175.3,4.05001154]
[1641149822670,12.11818728,175.34,175.3,4.05001154]
[1641149822869,32.26425476,175.38,175.31,124.18810381]
[1641149823068,32.26425476,175.38,175.35,30.66479]
[1641149823268,32.26425476,175.38,175.35,37.42479]
[1641149823470,31.05015476,175.38,175.35,37.42479]
[1641149823769,12.14770226,175.39,175.35,41.47480154]
[1641149823969,12.14770226,175.39,175.35,10.81001154]
[1641149824368,12.14770226,175.39,175.35,4.05001154]
[1641149824968,12.14770226,175.39,175.35,9.49701154]
[1641149825771,27.66479,175.4,175.35,9.49701154]
[1641149825971,27.66479,175.4,175.36,4.05001154]
[1641149827572,10.06971654,175.39,175.34,4.05001154]
[1641149829174,27.66479,175.36,175.34,4.05001154]
[1641149829775,27.66479,175.36,175.33,4.05001154]
[1641149832178,34.33779,175.4,175.33,4.05001154]
[1641149832378,4.979,175.36,175.33,4.05001154]
[1641149833579,10.06800312,175.38,175.33,4.05001154]
[1641149835181,31.28,175.39,175.34,4.05001154]
[1641149835381,55.32958,175.4,175.34,4.05001154]
[1641149835580,10.0686507,175.38,175.34,4.05001154]
[1641149836383,10.0686507,175.39,175.33,4.05001154]
[1641149837382,55.32958,175.4,175.33,4.05001154]
[1641149837582,55.32958,175.4,175.36,4.05001154]
[1641149838283,55.32958,175.4,175.35,4.05001154]
[1641149840682,55.32958,175.4,175.36,4.05001154]
[1641149841283,3.0,175.43,175.36,4.05001154]
[1641149841786,27.66479,175.38,175.36,4.05001154]
[1641149841987,27.66479,175.38,175.35,4.05001154]
[1641149842386,27.66479,175.41,175.35,4.05001154]
[1641149844090,27.66479,175.41,175.37,4.05001154]
[1641149845792,27.66479,175.41,175.38,4.05001154]
[1641149845995,60.41589,175.44,175.38,4.05001154]
[1641149846596,10.06479115,175.43,175.37,4.05001154]
[1641149849599,10.06479115,175.43,175.36,4.05001154]
[1641149850797,10.06479115,175.43,175.37,4.05001154]
[1641149851200,10.06479115,175.43,175.34,38.4114]
[1641149851901,10.06479115,175.43,175.38,4.04832595]
[1641149852602,10.06479115,175.43,175.34,38.4114]
[1641149853703,12.14492936,175.42,175.38,4.04830979]
[1641149854100,12.14492936,175.42,175.34,50.55632936]
[1641149855005,12.14492936,175.42,175.38,4.04831056]
[1641149855805,12.14492936,175.42,175.34,53.55632936]
[1641149856006,12.14492936,175.42,175.34,50.55632936]
[1641149856207,12.14492936,175.42,175.35,3.0]
[1641149856406,12.14492936,175.42,175.38,4.04828137]
[1641149857107,12.14492936,175.42,175.35,3.0]
[1641149857307,12.14492936,175.42,175.34,81.22111936]
[1641149857507,12.14492936,175.42,175.34,53.55632936]
[1641149858108,12.14492936,175.42,175.38,4.04824516]
[1641149858909,12.14492936,175.41,175.37,4.04828204]
[1641149859710,10.06479115,175.43,175.34,53.55632936]
[1641149860612,12.14494341,175.41,175.37,4.04831447]
[1641149861211,10.06479115,175.43,175.34,41.4114]
[1641149861413,10.06479115,175.43,175.34,38.4114]
[1641149862312,12.14566105,175.4,175.36,4.04855368]
[1641149862913,10.06479115,175.43,175.34,41.4114]
[1641149863115,12.1452845,175.41,175.37,4.04842817]
[1641149863916,12.1452845,175.41,175.34,38.4114]
[1641149864314,12.82717414,175.43,175.34,38.4114]
[1641149864614,12.82717414,175.43,175.37,4.04842964]
[1641149865014,27.66479,175.42,175.37,4.04842964]
[1641149865414,27.66479,175.42,175.34,38.4114]
[1641149865615,39.81009856,175.42,175.38,4.04843619]
[1641149866013,39.81009856,175.42,175.34,50.55632936]
[1641149866217,2.76238299,175.41,175.35,1.28604812]
[1641149866915,27.66479,175.42,175.35,1.28604812]
[1641149867115,27.66479,175.42,175.38,4.04704993]
[1641149867716,27.66479,175.44,175.34,53.55632936]
[1641149867916,10.54946905,175.42,175.36,3.0]
[1641149868117,10.54946905,175.42,175.38,3.0]
[1641149868315,32.38682518,175.46,175.36,5.69524732]
[1641149868516,32.38682518,175.46,175.41,3.0]
[1641149868718,32.38682518,175.46,175.41,6.402]
[1641149868918,12.13807732,175.48,175.41,9.402]
[1641149869216,12.13807732,175.48,175.42,30.66479]
[1641149869917,12.13807732,175.48,175.42,27.66479]
[1641149870118,32.38682518,175.52,175.4,40.239]
[1641149870417,9.26606884,175.48,175.47,4.04506884]
[1641149871020,36.93085884,175.48,175.47,4.04506884]
[1641149871519,32.88579,175.48,175.47,4.04506884]
[1641149871718,32.88579,175.48,175.4,40.239]
[1641149871922,32.88579,175.48,175.44,4.04559744]
[1641149872617,32.88579,175.48,175.4,40.239]
[1641149872819,32.88579,175.48,175.42,4.04569901]
[1641149873520,10.06052658,175.47,175.4,40.239]
[1641149874221,10.06052658,175.47,175.42,4.04711187]
[1641149875222,27.66479,175.44,175.42,4.04711187]
[1641149875423,27.66479,175.44,175.35,43.4327]
[1641149875622,27.66479,175.44,175.4,4.0475254]
[1641149876223,27.66479,175.44,175.35,43.4327]
[1641149876422,27.66479,175.44,175.41,4.0474305]
[1641149876625,27.66479,175.48,175.41,7.0474305]
[1641149876823,27.66479,175.48,175.41,4.0474305]
[1641149877022,27.66479,175.48,175.41,7.0474305]
[1641149877423,27.66479,175.48,175.41,3.0]
[1641149877627,27.66479,175.48,175.43,4.04697518]
[1641149878325,27.66479,175.48,175.46,4.04641285]
[1641149879128,27.66479,175.48,175.41,6.27855579]
[1641149880228,27.66479,175.48,175.47,4.04648696]
[1641149881027,27.66479,175.48,175.46,4.04675288]
[1641149881630,27.66479,175.48,175.47,4.04658263]
[1641149882328,27.66479,175.48,175.45,4.04679961]
[1641149883430,32.38682518,175.53,175.45,4.04679961]
[1641149883630,32.38682518,175.54,175.46,4.04668069]
[1641149883828,32.38682518,175.54,175.49,3.0]
[1641149884028,32.38682518,175.54,175.49,5.42]
[1641149885029,5.69443654,175.59,175.52,4.04558907]
[1641149885229,27.66479,175.57,175.52,4.04558907]
[1641149885430,32.95379,175.57,175.52,4.04558907]
[1641149886131,32.95379,175.57,175.46,38.0917]
[1641149886330,9.90453705,175.56,175.51,4.04548538]
[1641149887335,27.66479,175.57,175.53,4.04522607]
[1641149887534,27.66479,175.57,175.53,8.98022607]
[1641149888338,9.90319134,175.56,175.53,4.935]
[1641149888538,9.90319134,175.56,175.51,4.04521526]
[1641149889036,9.90319134,175.56,175.47,6.27767402]
[1641149889736,9.90319134,175.56,175.51,4.04525237]
[1641149890537,9.90319134,175.56,175.5,5.178]
[1641149891538,9.90319134,175.56,175.51,4.04523823]
[1641149892141,60.05161518,175.59,175.5,5.178]
[1641149892142,27.66479,175.59,175.5,5.178]
[1641149893341,27.66479,175.59,175.5,32.03579]
[1641149895342,55.32958,175.59,175.5,4.371]
[1641149895544,55.32958,175.59,175.47,3.0]
[1641149895742,59.86558,175.59,175.47,3.0]
[1641149896948,9.9023735,175.58,175.52,3.98476485]
[1641149898448,12.13482813,175.56,175.52,3.98476485]
[1641149899050,12.13482813,175.54,175.5,3.98476485]
[1641149901650,39.79961813,175.55,175.5,3.98476485]
[1641149902656,39.79961813,175.55,175.5,6.98476485]
[1641149903255,27.66479,175.55,175.52,3.98476485]
[1641149905558,27.66479,175.53,175.52,3.98476485]
[1641149905761,39.79961813,175.53,175.49,3.98476485]
[1641149907564,27.66479,175.5,175.49,3.98476485]
[1641149908364,30.31707859,175.5,175.49,3.98476485]
[1641149908963,31.71073626,175.5,175.47,1.39375913]
[1641149909767,31.71073626,175.5,175.43,3.0]
[1641149909768,31.71073626,175.5,175.49,4.04597908]
[1641149909966,31.71073626,175.5,175.49,10.13697908]
[1641149910567,27.66479,175.5,175.49,10.13697908]
[1641149910767,30.31697977,175.5,175.49,6.091]
[1641149912567,2.65218977,175.5,175.49,6.091]
[1641149913269,12.13482813,175.52,175.49,6.091]
[1641149913468,4.03486762,175.52,175.49,6.091]
[1641149914974,27.66479,175.53,175.5,5.43612574]
[1641149915672,4.03486762,175.54,175.5,5.43612574]
[1641149917174,4.03486762,175.55,175.51,4.04597908]
[1641149919378,4.03486762,175.55,175.51,5.43612574]
[1641149920079,31.69965762,175.55,175.51,5.43612574]
[1641149922478,4.03486762,175.55,175.51,5.43612574]
[1641149922879,2.6511936,175.54,175.53,4.04597908]
[1641149923078,8.3061936,175.54,175.53,4.04597908]
[1641149923579,8.3061936,175.54,175.51,4.04597908]
[1641149924383,2.6511936,175.53,175.51,4.04597908]
[1641149924982,39.79961813,175.55,175.49,13.52497479]
[1641149924983,2.6511936,175.54,175.49,13.52497479]
[1641149925782,2.6511936,175.54,175.53,4.04483566]
[1641149926685,27.66479,175.55,175.5,12.13482813]
[1641149926886,4.158,175.54,175.5,12.13482813]
[1641149927489,4.158,175.54,175.5,16.18030769]
[1641149927688,4.158,175.54,175.5,4.04547956]
[1641149927689,2.65166361,175.53,175.5,4.04547956]
[1641149930088,14.78649174,175.53,175.49,4.04547956]
[1641149931188,39.79961813,175.51,175.47,4.04547956]
[1641149931990,2.65166361,175.5,175.47,4.04547956]
[1641149932190,9.49066361,175.5,175.47,4.04547956]
[1641149932791,6.839,175.5,175.48,4.04547956]
[1641149933389,27.66479,175.51,175.48,4.04547956]
[1641149933592,27.66479,175.51,175.48,8.31747956]
[1641149933790,27.66479,175.51,175.48,4.272]
[1641149934391,27.66479,175.51,175.5,4.04594486]
[1641149935397,27.66479,175.51,175.49,1.39014666]
[1641149935398,27.66479,175.51,175.49,4.04594486]
[1641149935998,27.66479,175.51,175.48,4.04594486]
[1641149936798,12.13482813,175.55,175.48,4.04594486]
[1641149937398,27.66479,175.51,175.48,4.04594486]
[1641149938199,27.66479,175.51,175.49,4.04594486]
[1641149939099,31.70340729,175.51,175.48,4.04594486]
[1641149939901,4.03861729,175.5,175.48,4.04594486]
[1641149940700,4.03861729,175.49,175.47,4.04594486]
[1641149941402,4.03861729,175.49,175.46,4.04594486]
[1641149942501,4.03861729,175.5,175.47,4.04594486]
[1641149944512,31.70340729,175.51,175.49,4.04594486]
[1641149946008,31.70340729,175.51,175.49,8.95294486]
[1641149946207,4.03861729,175.51,175.49,8.95294486]
[1641149946406,12.13482813,175.55,175.49,8.95294486]
[1641149946607,12.13482813,175.55,175.5,3.0]
[1641149946805,4.04095335,175.55,175.54,3.0]
[1641149947005,4.04095335,175.55,175.54,9.389]
[1641149947207,1e-08,175.55,175.54,9.389]
[1641149947405,12.12286004,175.59,175.54,9.389]
[1641149947406,8.08286005,175.59,175.54,9.389]
[1641149947706,8.08286005,175.59,175.55,3.0]
[1641149947905,8.08286005,175.59,175.56,27.66479]
[1641149948107,32.38682518,175.63,175.56,27.66479]
[1641149948409,39.3117,175.64,175.56,27.66479]
[1641149948708,39.3117,175.64,175.55,41.6738]
[1641149948907,45.2567,175.64,175.55,41.6738]
[1641149949107,45.2567,175.64,175.54,1.39014666]
[1641149949308,2.57678717,175.63,175.57,1.39014666]
[1641149949908,27.66479,175.62,175.57,1.39014666]
[1641149950407,27.66479,175.62,175.52,7.98643907]
[1641149951607,2.57678717,175.61,175.52,7.98643907]
[1641149952610,3.0,175.57,175.52,7.98643907]
[1641149952810,4.226,175.57,175.52,7.98643907]
[1641149953709,4.226,175.57,175.48,33.77697184]
[1641149954112,29.85868111,175.57,175.48,33.77697184]
[1641149955411,2.45419746,175.56,175.48,3.0]
[1641149956211,2.45419746,175.56,175.49,1.39014666]
[1641149956613,43.23529746,175.56,175.49,6.59114666]
[1641149957012,43.23529746,175.56,175.49,5.201]
[1641149957812,2.45419746,175.56,175.49,5.201]
[1641149958113,25.41868111,175.57,175.5,1.39014666]
[1641149959713,25.41868111,175.57,175.51,3.0]
[1641149959917,25.41868111,175.57,175.5,1.39014666]
[1641149961614,25.41868111,175.57,175.49,7.98643907]
[1641149963116,25.41868111,175.57,175.49,51.19503413]
[1641149963715,25.41868111,175.57,175.49,40.37326425]
[1641149964121,3.0,175.56,175.49,7.98643907]
[1641149964317,25.41868111,175.57,175.49,7.98643907]
[1641149964919,25.41868111,175.57,175.49,1.39014666]
[1641149965120,25.41868111,175.57,175.47,1.39014666]
[1641149965418,40.1442,175.56,175.47,1.39014666]
[1641149967923,25.41868111,175.57,175.49,3.0]
[1641149968122,25.41868111,175.57,175.49,6.051]
[1641149968322,42.8984,175.61,175.49,6.051]
[1641149968522,42.8984,175.61,175.5,43.30484666]
[1641149969132,3.0,175.59,175.5,43.30484666]
[1641149969924,3.0,175.59,175.51,1.39014666]
[1641149970124,42.8984,175.61,175.51,7.40814666]
[1641149970325,27.66479,175.62,175.54,27.66479]
[1641149970524,35.38682518,175.69,175.54,27.66479]
[1641149970725,32.38682518,175.69,175.55,41.489]
[1641149970925,32.38682518,175.69,175.55,46.81]
[1641149971325,35.38682518,175.69,175.55,46.81]
[1641149971630,2.45515788,175.68,175.55,55.13223985]
[1641149971827,3.0,175.66,175.55,55.13223985]
[1641149972027,3.0,175.65,175.55,8.32223985]
[1641149972226,3.0,175.64,175.55,8.32223985]
[1641149972425,27.66479,175.61,175.56,8.32223985]
[1641149973029,40.0141,175.63,175.56,8.32223985]
[1641149973227,40.0141,175.63,175.55,8.32223985]
[1641149974026,2.45524156,175.62,175.55,8.32223985]
[1641149974327,27.66479,175.6,175.55,8.32223985]
[1641149976430,40.0141,175.63,175.55,8.32223985]
[1641149977530,2.45523105,175.62,175.56,12.13146233]
[1641149978535,2.45523105,175.62,175.57,12.13146233]
[1641149978735,2.45523105,175.62,175.57,18.78146233]
[1641149979334,2.45523105,175.63,175.58,1.39014666]
[1641149980633,2.45523105,175.63,175.58,13.52160899]
[1641149981436,2.45523105,175.63,175.58,12.13146233]
[1641149984040,14.58669338,175.63,175.55,12.13146233]
[1641149984841,27.66479,175.59,175.56,12.13146233]
[1641149985442,27.66479,175.59,175.55,12.13146233]
[1641149986345,40.1187,175.64,175.54,1.39014666]
[1641149987245,2.44691261,175.63,175.54,1.39014666]
[1641149987449,27.66479,175.59,175.54,1.39014666]
[1641149991556,27.66479,175.62,175.54,4.39014666]
[1641149991754,27.66479,175.62,175.54,8.57714666]
[1641149992155,27.66479,175.62,175.55,13.52160899]
[1641149993055,12.13146233,175.68,175.59,3.0]
[1641149993255,12.13146233,175.68,175.61,3.0]
[1641149993555,12.13146233,175.68,175.61,30.66479]
[1641149993956,12.13146233,175.68,175.62,3.0]
[1641149994157,12.13146233,175.68,175.61,27.66479]
[1641149994557,2.45371533,175.7,175.64,12.13146233]
[1641149994756,2.45371533,175.7,175.64,18.48746233]
[1641149995458,27.66479,175.68,175.64,18.48746233]
[1641149995659,27.66479,175.68,175.65,1.39014666]
[1641149995857,2.45371533,175.71,175.65,1.39014666]
[1641149996458,2.45371533,175.71,175.65,13.52160899]
[1641149997259,2.45371533,175.71,175.65,12.13146233]
[1641149997659,27.66479,175.67,175.65,12.13146233]
[1641149997859,32.55279,175.67,175.65,12.13146233]
[1641149998260,32.55279,175.67,175.63,12.13146233]
[1641150000563,2.45402545,175.66,175.61,1.39014666]
[1641150001563,27.66479,175.64,175.61,1.39014666]
[1641150002568,30.66479,175.64,175.61,1.39014666]
[1641150002766,3.0,175.63,175.61,1.39014666]
[1641150002967,7.956,175.63,175.61,1.39014666]
[1641150003168,3.0,175.62,175.61,1.39014666]
[1641150003368,3.0,175.62,175.56,12.13146233]
[1641150003569,27.66479,175.59,175.56,12.13146233]
[1641150003969,2.45402545,175.63,175.56,12.13146233]
[1641150004470,39.79625233,175.64,175.56,12.13146233]
[1641150004672,12.13146233,175.63,175.55,12.13146233]
[1641150005669,27.66479,175.59,175.55,12.13146233]
[1641150006669,27.66479,175.59,175.56,12.13146233]
[1641150007771,4.04394062,175.59,175.55,12.13146233]
[1641150007972,10.10694062,175.59,175.55,12.13146233]
[1641150009573,4.04394062,175.59,175.55,12.13146233]
[1641150009971,31.70873062,175.6,175.56,12.13146233]
[1641150010972,27.66479,175.6,175.57,12.13146233]
[1641150011673,27.66479,175.6,175.58,12.13146233]
[1641150012575,27.66479,175.6,175.57,12.13146233]
[1641150012980,36.25879,175.6,175.54,8.32213502]
[1641150013179,33.25879,175.6,175.53,0.06683588]
[1641150013381,3.0,175.54,175.53,0.06683588]
[1641150013579,9.905,175.54,175.52,12.13292004]
[1641150013879,58.32958,175.53,175.48,0.06683588]
[1641150014179,3.0,175.52,175.48,0.06683588]
[1641150014378,55.32958,175.53,175.48,0.06683588]
[1641150014582,3.0,175.51,175.48,0.06683588]
[1641150014782,3.0,175.5,175.43,48.64460543]
[1641150014983,6.229,175.5,175.43,48.64460543]
[1641150015179,9.229,175.5,175.39,17.76404847]
[1641150015784,27.66479,175.47,175.39,17.76404847]
[1641150015987,27.66479,175.47,175.4,50.2330206]
[1641150016185,21.19188388,175.47,175.4,50.2330206]
[1641150017286,21.19188388,175.47,175.41,1.58841517]
[1641150018787,21.19188388,175.47,175.39,8.52072932]
[1641150021391,25.97388388,175.47,175.39,8.52072932]
[1641150021991,30.01953971,175.47,175.39,8.52072932]
[1641150022391,33.01953971,175.47,175.39,8.52072932]
[1641150022791,30.01953971,175.47,175.39,8.52072932]
[1641150022991,25.23753971,175.47,175.39,8.52072932]
[1641150023392,4.04565583,175.46,175.37,1.58841517]
[1641150024191,4.04565583,175.46,175.38,1.58841517]
[1641150024992,4.04565583,175.45,175.39,1.58841517]
[1641150025892,4.04565583,175.45,175.4,1.58841517]
[1641150026094,4.04565583,175.45,175.4,6.46941517]
[1641150026496,21.19188388,175.47,175.4,6.46941517]
[1641150026497,25.23753971,175.47,175.41,1.58841517]
[1641150027094,25.23753971,175.47,175.42,1.58841517]
[1641150028195,21.19188388,175.47,175.43,1.58841517]
[1641150028896,25.23753971,175.47,175.44,1.58841517]
[1641150029897,28.23753971,175.47,175.45,1.58841517]
[1641150030498,28.23753971,175.47,175.46,1.58841517]
[1641150031300,26.95413215,175.47,175.46,5.63481651]
[1641150031500,23.95413215,175.47,175.46,5.63481651]
[1641150031799,26.95413215,175.47,175.46,5.63481651]
[1641150032199,26.95413215,175.47,175.36,17.76404847]
[1641150032200,32.6526249,175.47,175.36,17.76404847]
[1641150032399,3.0,175.39,175.36,17.76404847]
[1641150032599,9.626,175.39,175.36,17.76404847]
[1641150032798,3.0,175.38,175.36,17.76404847]
[1641150032999,9.626,175.39,175.36,6.93231415]
[1641150033200,6.626,175.39,175.36,6.93231415]
[1641150033598,3.0,175.41,175.36,6.93231415]
[1641150033998,27.66479,175.37,175.36,6.93231415]
[1641150034599,27.66479,175.37,175.33,32.38224668]
[1641150036599,27.66479,175.37,175.32,32.38224668]
[1641150037301,3.0,175.4,175.32,32.38224668]
[1641150037499,3.0,175.38,175.32,32.38224668]
[1641150037700,3.0,175.39,175.32,32.38224668]
[1641150038002,27.66479,175.36,175.32,32.38224668]
[1641150038500,27.66479,175.36,175.31,32.38224668]
[1641150039202,3.0,175.39,175.31,32.38224668]
[1641150040004,27.66479,175.36,175.31,32.38224668]
[1641150040603,27.66479,175.36,175.3,32.38224668]
[1641150041406,3.0,175.43,175.31,3.0]
[1641150041606,3.0,175.43,175.31,8.903]
[1641150041807,3.0,175.43,175.31,5.903]
[1641150042006,27.66479,175.34,175.33,32.38224668]
[1641150042206,34.57379,175.34,175.33,32.38224668]
[1641150043011,34.57379,175.34,175.3,32.38224668]
[1641150043207,27.66479,175.37,175.3,32.38224668]
[1641150043408,27.66479,175.37,175.3,37.64224668]
[1641150044709,27.66479,175.37,175.34,12.14449683]
[1641150045510,27.66479,175.37,175.36,12.14449683]
[1641150050516,27.66479,175.37,175.35,12.14449683]
[1641150053119,27.66479,175.41,175.35,12.14449683]
[1641150053327,27.66479,175.41,175.35,16.41749683]
[1641150054619,27.66479,175.41,175.35,12.14449683]
[1641150057327,12.14449683,175.43,175.35,18.39449683]
[1641150057523,12.14449683,175.43,175.35,21.39449683]
[1641150057726,3.0,175.49,175.35,21.39449683]
[1641150057727,12.14449683,175.49,175.36,5.69524732]
[1641150057926,12.14449683,175.49,175.37,46.2948]
[1641150058127,12.14449683,175.49,175.37,49.2948]
[1641150058529,12.14449683,175.49,175.37,46.2948]
[1641150059029,3.0,175.5,175.37,46.2948]
[1641150059229,27.66479,175.48,175.38,27.66479]
[1641150060131,27.66479,175.48,175.42,12.14449683]
[1641150060331,27.66479,175.48,175.42,17.13149683]
[1641150060934,3.0,175.47,175.42,17.13149683]
[1641150061133,7.646,175.47,175.42,17.13149683]
[1641150061334,27.66479,175.44,175.42,12.14449683]
[1641150061934,27.66479,175.44,175.39,12.14449683]
[1641150064641,27.66479,175.44,175.38,18.26554059]
[1641150066545,27.66479,175.44,175.37,58.43929683]
[1641150066743,27.66479,175.44,175.37,12.14449683]
[1641150068545,27.66479,175.44,175.39,12.14449683]
[1641150069644,27.66479,175.44,175.38,12.14449683]
[1641150070445,27.66479,175.44,175.35,6.12144131]
[1641150070446,27.66479,175.44,175.39,12.14449683]
[1641150072847,62.04249683,175.47,175.39,12.14449683]
[1641150073651,27.66479,175.43,175.37,12.14449683]
[1641150074051,27.66479,175.45,175.37,12.14449683]
[1641150074553,27.66479,175.45,175.39,12.14449683]
[1641150076153,27.66479,175.45,175.38,15.14449683]
[1641150076353,27.66479,175.49,175.38,12.14449683]
[1641150076558,27.66479,175.49,175.39,13.42821374]
[1641150077760,2.75603877,175.48,175.41,27.66479]
[1641150078359,2.75603877,175.48,175.42,1.28371691]
[1641150080359,2.75603877,175.48,175.42,7.62271691]
[1641150081361,2.75603877,175.48,175.42,10.62271691]
[1641150081560,2.75603877,175.48,175.43,1.28371691]
[1641150081763,2.75603877,175.48,175.45,27.66479]
[1641150082469,47.5134,175.5,175.45,27.66479]
[1641150082665,27.66479,175.52,175.46,1.28371691]
[1641150083867,2.75570537,175.51,175.46,1.28371691]
[1641150085271,2.75570537,175.54,175.46,1.28371691]
[1641150085470,2.75570537,175.54,175.46,5.95071691]
[1641150085872,2.75570537,175.54,175.47,1.28371691]
[1641150087473,2.75570537,175.54,175.47,12.14449683]